[Event "Open NK Rapid 2025"]
[Site "Helmond, Netherlands"]
[Date "2025.05.03"]
[Round "4.9"]
[White "Kuipers-Haast, Anne"]
[Black "Khatniuk, Anastasiia"]
[Result "1-0"]
[TimeControl "15+5"]
[WhiteFideId "1017292"]
[BlackFideId "14179105"]
[WhiteElo "2272"]
[BlackElo "1822"]

1. e4 {[%clk 00:15:08]} {[%emt 00:00:02]} c5 {[%clk 00:15:09]} {[%emt
00:00:01]} 2. Nf3 {[%clk 00:15:10]} {[%emt 00:00:03]} e6 {[%clk 00:15:12]}
{[%emt 00:00:01]} 3. d4 {[%clk 00:15:13]} {[%emt 00:00:03]} cxd4 {[%clk
00:15:15]} {[%emt 00:00:01]} 4. Nxd4 {[%clk 00:15:17]} {[%emt 00:00:02]} a6
{[%clk 00:15:19]} 5. c4 {[%clk 00:15:13]} {[%emt 00:00:08]} Nf6 {[%clk
00:15:23]} {[%emt 00:00:02]} 6. Nc3 {[%clk 00:15:14]} {[%emt 00:00:04]} Qc7
{[%clk 00:15:26]} {[%emt 00:00:02]} 7. Be2 {[%clk 00:14:49]} {[%emt 00:00:30]}
Nc6 {[%clk 00:15:23]} {[%emt 00:00:08]} 8. O-O {[%clk 00:14:38]} {[%emt
00:00:16]} Bb4 {[%clk 00:15:00]} {[%emt 00:00:27]} 9. Qd3 {[%clk 00:13:02]}
{[%emt 00:01:41]} Ne5 {[%clk 00:13:31]} {[%emt 00:01:34]} 10. Qg3 {[%clk
00:12:39]} {[%emt 00:00:28]} O-O {[%clk 00:12:51]} {[%emt 00:00:46]} 11. Bf4
{[%clk 00:10:28]} {[%emt 00:02:16]} d6 {[%clk 00:12:32]} {[%emt 00:00:24]} 12.
Bg5 {[%clk 00:09:27]} {[%emt 00:01:07]} Nfd7 {[%clk 00:11:56]} {[%emt
00:00:40]} 13. Rac1 {[%clk 00:09:15]} {[%emt 00:00:17]} Bc5 {[%clk 00:11:36]}
{[%emt 00:00:24]} 14. Be3 {[%clk 00:09:00]} {[%emt 00:00:20]} Nc6 {[%clk
00:10:15]} {[%emt 00:01:27]} 15. Rfd1 {[%clk 00:07:06]} {[%emt 00:01:59]} Nxd4
{[%clk 00:09:44]} {[%emt 00:00:36]} 16. Bxd4 {[%clk 00:07:10]} Bxd4 {[%clk
00:09:47]} {[%emt 00:00:02]} 17. Rxd4 {[%clk 00:07:14]} {[%emt 00:00:01]} e5
{[%clk 00:09:28]} {[%emt 00:00:24]} 18. Rdd1 {[%clk 00:07:10]} {[%emt
00:00:09]} Nf6 {[%clk 00:09:08]} {[%emt 00:00:25]} 19. b4 {[%clk 00:06:51]}
{[%emt 00:00:24]} Be6 {[%clk 00:08:58]} {[%emt 00:00:14]} 20. Qd3 {[%clk
00:05:32]} {[%emt 00:01:25]} Rac8 {[%clk 00:08:04]} {[%emt 00:00:59]} 21. Nd5
{[%clk 00:05:02]} {[%emt 00:00:35]} Bxd5 {[%clk 00:08:00]} {[%emt 00:00:09]} 22.
exd5 {[%clk 00:05:05]} {[%emt 00:00:02]} Qe7 {[%clk 00:07:21]} {[%emt
00:00:44]} 23. c5 {[%clk 00:04:25]} {[%emt 00:00:46]} dxc5 {[%clk 00:05:52]}
{[%emt 00:01:33]} 24. bxc5 {[%clk 00:04:14]} {[%emt 00:00:16]} Rfd8 {[%clk
00:05:42]} {[%emt 00:00:15]} 25. d6 {[%clk 00:04:02]} {[%emt 00:00:18]} Qe6
{[%clk 00:04:56]} {[%emt 00:00:50]} 26. Qb3 {[%clk 00:03:45]} {[%emt 00:00:22]}
Nd7 {[%clk 00:04:16]} {[%emt 00:00:44]} 27. Bc4 {[%clk 00:03:18]} {[%emt
00:00:32]} Qf6 {[%clk 00:04:14]} {[%emt 00:00:08]} 28. Qe3 {[%clk 00:02:44]}
{[%emt 00:00:40]} Nxc5 {[%clk 00:03:53]} {[%emt 00:00:25]} 29. Bxf7+ {[%clk
00:02:41]} {[%emt 00:00:07]} Kxf7 {[%clk 00:03:35]} {[%emt 00:00:24]} 30. Rxc5
{[%clk 00:02:44]} {[%emt 00:00:02]} Rxc5 {[%clk 00:02:34]} {[%emt 00:01:06]} 31.
Qxc5 {[%clk 00:02:47]} {[%emt 00:00:01]} Rd7 {[%clk 00:02:38]} {[%emt
00:00:01]} 32. h4 {[%clk 00:02:32]} {[%emt 00:00:20]} h5 {[%clk 00:02:23]}
{[%emt 00:00:21]} 33. Rd3 {[%clk 00:02:31]} {[%emt 00:00:05]} Kg6 {[%clk
00:02:16]} {[%emt 00:00:12]} 34. Qc2 {[%clk 00:01:53]} {[%emt 00:00:44]} Kh6
{[%clk 00:02:13]} {[%emt 00:00:07]} 35. Rd5 {[%clk 00:01:38]} {[%emt 00:00:21]}
Qxh4 {[%clk 00:01:37]} {[%emt 00:00:40]} 36. Qf5 {[%clk 00:01:26]} {[%emt
00:00:17]} Qg4 {[%clk 00:01:16]} {[%emt 00:00:25]} 37. Qxe5 {[%clk 00:01:28]}
{[%emt 00:00:05]} Qg6 {[%clk 00:01:04]} {[%emt 00:00:16]} 38. Kh2 {[%clk
00:01:21]} {[%emt 00:00:13]} Qf7 {[%clk 00:01:00]} {[%emt 00:00:09]} 39. f3
{[%clk 00:01:13]} {[%emt 00:00:13]} g6 {[%clk 00:00:59]} {[%emt 00:00:06]} 40.
a4 {[%clk 00:01:07]} {[%emt 00:00:12]} Qf8 {[%clk 00:00:53]} {[%emt 00:00:10]}
41. Rd4 {[%clk 00:01:05]} {[%emt 00:00:07]} Qd8 {[%clk 00:00:52]} {[%emt
00:00:04]} 42. Qe6 {[%clk 00:01:04]} {[%emt 00:00:08]} b5 {[%clk 00:00:46]}
{[%emt 00:00:13]} 43. axb5 {[%clk 00:01:07]} axb5 {[%clk 00:00:50]} 44. Kh3
{[%clk 00:01:02]} {[%emt 00:00:11]} b4 {[%clk 00:00:51]} {[%emt 00:00:03]} 45.
g4 {[%clk 00:00:57]} {[%emt 00:00:10]} hxg4+ {[%clk 00:00:45]} {[%emt
00:00:12]} 46. Rxg4 {[%clk 00:00:59]} {[%emt 00:00:04]} Kh7 {[%clk 00:00:34]}
{[%emt 00:00:15]} 47. Qxg6+ {[%clk 00:00:59]} {[%emt 00:00:05]} 1-0

[Event "Open NK Rapid 2025"]
[Site "Helmond, Netherlands"]
[Date "2025.05.03"]
[Round "4.10"]
[White "Kurt, Sascha"]
[Black "Grochal, Joey"]
[Result "1/2-1/2"]
[TimeControl "15+5"]
[WhiteFideId "1082647"]
[BlackFideId "1019945"]
[WhiteElo "1953"]
[BlackElo "2261"]

1. e4 {[%clk 00:15:06]} {[%emt 00:00:04]} c5 {[%clk 00:15:09]} {[%emt
00:00:02]} 2. Nf3 {[%clk 00:15:08]} {[%emt 00:00:03]} Nc6 {[%clk 00:15:12]}
{[%emt 00:00:02]} 3. d4 {[%clk 00:15:11]} {[%emt 00:00:02]} cxd4 {[%clk
00:15:16]} {[%emt 00:00:02]} 4. Nxd4 {[%clk 00:15:15]} {[%emt 00:00:01]} e6
{[%clk 00:15:19]} {[%emt 00:00:02]} 5. Nc3 {[%clk 00:15:18]} {[%emt 00:00:01]}
Qc7 {[%clk 00:15:23]} {[%emt 00:00:02]} 6. Be3 {[%clk 00:15:21]} {[%emt
00:00:01]} a6 {[%clk 00:15:26]} {[%emt 00:00:02]} 7. a3 {[%clk 00:15:24]}
{[%emt 00:00:02]} b5 {[%clk 00:15:29]} {[%emt 00:00:03]} 8. h4 {[%clk
00:14:56]} {[%emt 00:00:32]} Nf6 {[%clk 00:14:54]} {[%emt 00:00:40]} 9. h5
{[%clk 00:14:53]} {[%emt 00:00:08]} h6 {[%clk 00:14:44]} {[%emt 00:00:15]} 10.
Nxc6 {[%clk 00:14:54]} {[%emt 00:00:04]} dxc6 {[%clk 00:14:25]} {[%emt
00:00:24]} 11. Be2 {[%clk 00:14:49]} {[%emt 00:00:09]} Bb7 {[%clk 00:14:20]}
{[%emt 00:00:10]} 12. O-O {[%clk 00:13:56]} {[%emt 00:00:59]} Rd8 {[%clk
00:14:16]} {[%emt 00:00:09]} 13. Qe1 {[%clk 00:13:44]} {[%emt 00:00:17]} c5
{[%clk 00:14:09]} {[%emt 00:00:12]} 14. Bf3 {[%clk 00:13:35]} {[%emt 00:00:13]}
Bd6 {[%clk 00:13:17]} {[%emt 00:00:58]} 15. Qe2 {[%clk 00:13:22]} {[%emt
00:00:18]} Bh2+ {[%clk 00:12:43]} {[%emt 00:00:39]} 16. Kh1 {[%clk 00:13:25]}
{[%emt 00:00:02]} Be5 {[%clk 00:12:46]} {[%emt 00:00:02]} 17. Rad1 {[%clk
00:12:11]} {[%emt 00:01:19]} O-O {[%clk 00:12:35]} {[%emt 00:00:16]} 18. Rg1
{[%clk 00:11:03]} {[%emt 00:01:13]} Nh7 {[%clk 00:12:05]} {[%emt 00:00:35]} 19.
g3 {[%clk 00:10:47]} {[%emt 00:00:20]} Qe7 {[%clk 00:11:33]} {[%emt 00:00:38]}
20. Bg2 {[%clk 00:10:40]} {[%emt 00:00:11]} Bd4 {[%clk 00:11:01]} {[%emt
00:00:38]} 21. f4 {[%clk 00:09:16]} {[%emt 00:01:30]} Rd7 {[%clk 00:10:13]}
{[%emt 00:00:52]} 22. Rd2 {[%clk 00:09:10]} {[%emt 00:00:11]} Rfd8 {[%clk
00:08:41]} {[%emt 00:01:37]} 23. Rgd1 {[%clk 00:09:12]} {[%emt 00:00:03]} Bxe3
{[%clk 00:06:43]} {[%emt 00:02:03]} 24. Qxe3 {[%clk 00:09:11]} {[%emt
00:00:09]} Rxd2 {[%clk 00:06:33]} {[%emt 00:00:11]} 25. Rxd2 {[%clk 00:09:14]}
{[%emt 00:00:02]} Rxd2 {[%clk 00:06:33]} {[%emt 00:00:05]} 26. Qxd2 {[%clk
00:09:18]} Nf6 {[%clk 00:06:26]} {[%emt 00:00:12]} 27. Qe2 {[%clk 00:09:07]}
{[%emt 00:00:16]} b4 {[%clk 00:05:35]} {[%emt 00:00:56]} 28. axb4 {[%clk
00:09:10]} {[%emt 00:00:02]} cxb4 {[%clk 00:05:39]} {[%emt 00:00:01]} 29. Nd1
{[%clk 00:08:45]} {[%emt 00:00:29]} Qc5 {[%clk 00:05:03]} {[%emt 00:00:42]} 30.
e5 {[%clk 00:08:16]} {[%emt 00:00:34]} Bxg2+ {[%clk 00:05:07]} {[%emt
00:00:01]} 31. Kxg2 {[%clk 00:08:11]} {[%emt 00:00:10]} Nd5 {[%clk 00:05:06]}
{[%emt 00:00:07]} 32. Qd3 {[%clk 00:07:47]} {[%emt 00:00:26]} a5 {[%clk
00:05:06]} {[%emt 00:00:08]} 33. b3 {[%clk 00:07:48]} {[%emt 00:00:03]} Qc6
{[%clk 00:04:57]} {[%emt 00:00:14]} 34. Kh2 {[%clk 00:07:41]} {[%emt 00:00:11]}
Qb6 {[%clk 00:04:49]} {[%emt 00:00:14]} 35. Kg2 {[%clk 00:07:35]} {[%emt
00:00:11]} Qc6 {[%clk 00:04:32]} {[%emt 00:00:23]} 36. Kh2 {[%clk 00:07:37]}
{[%emt 00:00:02]} a4 {[%clk 00:04:36]} {[%emt 00:00:02]} 37. bxa4 {[%clk
00:07:39]} {[%emt 00:00:03]} Qxa4 {[%clk 00:04:39]} {[%emt 00:00:01]} 38. Kg2
{[%clk 00:06:22]} {[%emt 00:01:21]} Qa1 {[%clk 00:04:35]} {[%emt 00:00:09]} 39.
Kf2 {[%clk 00:06:03]} {[%emt 00:00:21]} Qa7+ {[%clk 00:03:58]} {[%emt
00:00:46]} 40. Kg2 {[%clk 00:06:04]} {[%emt 00:00:03]} Qc5 {[%clk 00:04:02]}
{[%emt 00:00:02]} 41. Kh2 {[%clk 00:06:00]} {[%emt 00:00:08]} Kf8 {[%clk
00:03:41]} {[%emt 00:00:27]} 42. Kg2 {[%clk 00:05:55]} {[%emt 00:00:10]} Ke7
{[%clk 00:03:39]} {[%emt 00:00:07]} 43. Kf1 {[%clk 00:05:08]} {[%emt 00:00:51]}
Qc6 {[%clk 00:03:05]} {[%emt 00:00:40]} 44. Kf2 {[%clk 00:05:05]} {[%emt
00:00:08]} f5 {[%clk 00:02:32]} {[%emt 00:00:38]} 45. Kg1 {[%clk 00:04:36]}
{[%emt 00:00:34]} Qe8 {[%clk 00:01:58]} {[%emt 00:00:39]} 46. Ne3 {[%clk
00:04:11]} {[%emt 00:00:30]} Nxe3 {[%clk 00:01:14]} {[%emt 00:00:49]} 47. Qxe3
{[%clk 00:04:15]} {[%emt 00:00:01]} Qb5 {[%clk 00:00:47]} {[%emt 00:00:32]} 48.
Kf2 {[%clk 00:03:52]} {[%emt 00:00:28]} Qc4 {[%clk 00:00:47]} {[%emt 00:00:05]}
49. Qd2 {[%clk 00:03:34]} {[%emt 00:00:23]} Qc5+ {[%clk 00:00:32]} {[%emt
00:00:20]} 50. Ke2 {[%clk 00:03:26]} {[%emt 00:00:12]} Qc4+ {[%clk 00:00:24]}
{[%emt 00:00:14]} 51. Qd3 {[%clk 00:03:29]} {[%emt 00:00:02]} Qc5 {[%clk
00:00:26]} {[%emt 00:00:04]} 52. Kf1 {[%clk 00:03:02]} {[%emt 00:00:30]} Qc6
{[%clk 00:00:22]} {[%emt 00:00:10]} 53. Kf2 {[%clk 00:03:01]} {[%emt 00:00:10]}
Qc5+ {[%clk 00:00:24]} 54. Kf1 {[%clk 00:03:04]} 1/2-1/2

[Event "Open NK Rapid 2025"]
[Site "Helmond, Netherlands"]
[Date "2025.05.03"]
[Round "4.11"]
[White "Hilwerda, Jonas"]
[Black "Kakrana, Reyansh"]
[Result "1-0"]
[TimeControl "15+5"]
[WhiteFideId "1046713"]
[BlackFideId "1094092"]
[WhiteElo "2233"]
[BlackElo "1796"]

1. e4 {[%clk 00:15:09]} c6 {[%clk 00:15:09]} {[%emt 00:00:02]} 2. d4 {[%clk
00:15:13]} d5 {[%clk 00:15:10]} {[%emt 00:00:03]} 3. e5 {[%clk 00:15:17]}
{[%emt 00:00:01]} c5 {[%clk 00:15:14]} {[%emt 00:00:01]} 4. c3 {[%clk
00:15:21]} cxd4 {[%clk 00:15:11]} {[%emt 00:00:08]} 5. cxd4 {[%clk 00:15:25]}
{[%emt 00:00:01]} Nc6 {[%clk 00:15:15]} 6. Nc3 {[%clk 00:15:24]} {[%emt
00:00:06]} Bf5 {[%clk 00:15:04]} {[%emt 00:00:16]} 7. Bd3 {[%clk 00:15:19]}
{[%emt 00:00:10]} Bxd3 {[%clk 00:14:50]} {[%emt 00:00:19]} 8. Qxd3 {[%clk
00:15:22]} {[%emt 00:00:02]} e6 {[%clk 00:14:54]} {[%emt 00:00:01]} 9. f4
{[%clk 00:15:15]} {[%emt 00:00:12]} h5 {[%clk 00:14:36]} {[%emt 00:00:22]} 10.
Nf3 {[%clk 00:15:15]} {[%emt 00:00:08]} Nge7 {[%clk 00:14:31]} {[%emt
00:00:08]} 11. O-O {[%clk 00:15:05]} {[%emt 00:00:14]} Nf5 {[%clk 00:14:18]}
{[%emt 00:00:18]} 12. Be3 {[%clk 00:15:09]} {[%emt 00:00:01]} Be7 {[%clk
00:13:24]} {[%emt 00:00:59]} 13. Bf2 {[%clk 00:15:11]} {[%emt 00:00:04]} O-O
{[%clk 00:13:01]} {[%emt 00:00:28]} 14. g3 {[%clk 00:14:43]} {[%emt 00:00:33]}
Qd7 {[%clk 00:11:22]} {[%emt 00:01:44]} 15. Kg2 {[%clk 00:14:42]} {[%emt
00:00:06]} Rfb8 {[%clk 00:10:07]} {[%emt 00:01:19]} 16. h3 {[%clk 00:14:39]}
{[%emt 00:00:09]} Nh6 {[%clk 00:09:16]} {[%emt 00:00:56]} 17. Nd2 {[%clk
00:14:16]} {[%emt 00:00:28]} b5 {[%clk 00:08:24]} {[%emt 00:00:57]} 18. Qf3
{[%clk 00:14:18]} {[%emt 00:00:02]} g6 {[%clk 00:08:27]} {[%emt 00:00:03]} 19.
g4 {[%clk 00:14:20]} {[%emt 00:00:03]} hxg4 {[%clk 00:07:46]} {[%emt 00:00:46]}
20. hxg4 {[%clk 00:14:24]} {[%emt 00:00:02]} b4 {[%clk 00:07:42]} {[%emt
00:00:08]} 21. Ne2 {[%clk 00:14:25]} {[%emt 00:00:04]} Kg7 {[%clk 00:06:35]}
{[%emt 00:01:12]} 22. Rh1 {[%clk 00:13:36]} {[%emt 00:00:54]} Rh8 {[%clk
00:06:38]} {[%emt 00:00:02]} 23. Rh2 {[%clk 00:13:30]} {[%emt 00:00:11]} Rh7
{[%clk 00:02:49]} {[%emt 00:04:02]} 24. g5 {[%clk 00:13:34]} Nf5 {[%clk
00:02:47]} 25. Rxh7+ {[%clk 00:13:33]} {[%emt 00:00:05]} Kxh7 {[%clk 00:02:51]}
{[%emt 00:00:02]} 26. Rh1+ {[%clk 00:13:34]} {[%emt 00:00:04]} Kg7 {[%clk
00:02:55]} {[%emt 00:00:01]} 27. Qh3 {[%clk 00:13:18]} {[%emt 00:00:21]} Rg8
{[%clk 00:02:58]} {[%emt 00:00:02]} 28. Nb3 {[%clk 00:13:10]} {[%emt 00:00:13]}
a5 {[%clk 00:02:27]} {[%emt 00:00:36]} 29. Ng3 {[%clk 00:13:14]} Kf8 {[%clk
00:02:07]} {[%emt 00:00:26]} 30. Rc1 {[%clk 00:13:13]} {[%emt 00:00:05]} a4
{[%clk 00:01:46]} {[%emt 00:00:26]} 31. Nxf5 {[%clk 00:12:51]} {[%emt
00:00:27]} gxf5 {[%clk 00:01:05]} {[%emt 00:00:46]} 32. Nc5 {[%clk 00:12:55]}
Bxc5 {[%clk 00:01:08]} {[%emt 00:00:02]} 33. Rxc5 {[%clk 00:12:59]} {[%emt
00:00:02]} Ke7 {[%clk 00:01:08]} {[%emt 00:00:05]} 34. Qh6 {[%clk 00:13:02]}
{[%emt 00:00:01]} Qe8 {[%clk 00:00:33]} {[%emt 00:00:39]} 35. Qh5 {[%clk
00:12:26]} {[%emt 00:00:42]} Qd7 {[%clk 00:00:29]} {[%emt 00:00:09]} 36. Qe2
{[%clk 00:11:46]} {[%emt 00:00:44]} Rc8 {[%clk 00:00:21]} {[%emt 00:00:14]} 37.
Qb5 {[%clk 00:11:48]} {[%emt 00:00:03]} Na7 {[%clk 00:00:07]} {[%emt 00:00:20]}
38. Qxb4 {[%clk 00:11:52]} {[%emt 00:00:01]} Rxc5 {[%clk 00:00:10]} {[%emt
00:00:01]} 39. Qxc5+ {[%clk 00:11:45]} {[%emt 00:00:13]} Ke8 {[%clk 00:00:11]}
{[%emt 00:00:03]} 40. Be1 {[%clk 00:11:49]} {[%emt 00:00:01]} Nc8 {[%clk
00:00:07]} {[%emt 00:00:10]} 41. Bb4 {[%clk 00:11:48]} {[%emt 00:00:06]} Ne7
{[%clk 00:00:10]} 42. Qxe7+ {[%clk 00:11:19]} {[%emt 00:00:34]} Qxe7 {[%clk
00:00:14]} {[%emt 00:00:01]} 43. Bxe7 {[%clk 00:11:22]} {[%emt 00:00:02]} Kxe7
{[%clk 00:00:18]} {[%emt 00:00:01]} 44. Kf3 {[%clk 00:11:26]} Kd7 {[%clk
00:00:12]} {[%emt 00:00:10]} 45. Ke3 {[%clk 00:11:31]} {[%emt 00:00:01]} Kc6
{[%clk 00:00:16]} 46. Kd3 {[%clk 00:11:35]} Kb5 {[%clk 00:00:17]} {[%emt
00:00:04]} 47. Kc3 {[%clk 00:11:39]} {[%emt 00:00:01]} Ka5 {[%clk 00:00:19]}
{[%emt 00:00:04]} 48. a3 {[%clk 00:11:42]} {[%emt 00:00:01]} Kb5 {[%clk
00:00:20]} {[%emt 00:00:04]} 49. b3 {[%clk 00:11:46]} {[%emt 00:00:02]} Ka5
{[%clk 00:00:10]} {[%emt 00:00:14]} 50. bxa4 {[%clk 00:11:49]} {[%emt
00:00:03]} Kxa4 {[%clk 00:00:12]} {[%emt 00:00:02]} 51. Kb2 {[%clk 00:11:53]}
Kb5 {[%clk 00:00:14]} {[%emt 00:00:03]} 52. Kb3 {[%clk 00:11:57]} Ka5 {[%clk
00:00:18]} {[%emt 00:00:01]} 53. a4 {[%clk 00:12:02]} Ka6 {[%clk 00:00:20]}
{[%emt 00:00:03]} 54. Kb4 {[%clk 00:12:06]} {[%emt 00:00:01]} Kb6 {[%clk
00:00:21]} {[%emt 00:00:04]} 55. a5+ {[%clk 00:12:10]} Kc6 {[%clk 00:00:23]}
{[%emt 00:00:02]} 56. Ka4 {[%clk 00:12:13]} {[%emt 00:00:03]} Kc7 {[%clk
00:00:25]} {[%emt 00:00:03]} 57. Kb5 {[%clk 00:12:17]} {[%emt 00:00:02]} Kb7
{[%clk 00:00:29]} 58. a6+ {[%clk 00:12:21]} Ka7 {[%clk 00:00:33]} 59. Ka5
{[%clk 00:12:25]} {[%emt 00:00:01]} Ka8 {[%clk 00:00:36]} {[%emt 00:00:02]} 60.
Kb6 {[%clk 00:12:30]} {[%emt 00:00:01]} Kb8 {[%clk 00:00:40]} 61. a7+ {[%clk
00:12:34]} Ka8 {[%clk 00:00:44]} 62. Ka6 {[%clk 00:12:38]} {[%emt 00:00:01]} f6
{[%clk 00:00:49]} 63. g6 {[%clk 00:12:42]} fxe5 {[%clk 00:00:51]} {[%emt
00:00:03]} 64. g7 {[%clk 00:12:47]} {[%emt 00:00:01]} exf4 {[%clk 00:00:36]}
{[%emt 00:00:19]} 65. g8=Q# {[%clk 00:12:47]} {[%emt 00:00:05]} 1-0

[Event "Open NK Rapid 2025"]
[Site "Helmond, Netherlands"]
[Date "2025.05.03"]
[Round "4.12"]
[White "Baselmans, Luuk"]
[Black "Bakels, Anton"]
[Result "1-0"]
[TimeControl "15+5"]
[WhiteFideId "1051008"]
[BlackFideId "1046187"]
[WhiteElo "2405"]
[BlackElo "2025"]

1. e4 {[%clk 00:15:07]} {[%emt 00:00:03]} c5 {[%clk 00:15:09]} {[%emt
00:00:01]} 2. Nf3 {[%clk 00:15:10]} {[%emt 00:00:02]} d6 {[%clk 00:15:12]}
{[%emt 00:00:02]} 3. Bb5+ {[%clk 00:15:13]} {[%emt 00:00:01]} Nd7 {[%clk
00:15:05]} {[%emt 00:00:13]} 4. Ba4 {[%clk 00:15:16]} {[%emt 00:00:02]} a6
{[%clk 00:14:35]} {[%emt 00:00:34]} 5. c4 {[%clk 00:15:17]} {[%emt 00:00:05]}
Ngf6 {[%clk 00:14:12]} {[%emt 00:00:28]} 6. Nc3 {[%clk 00:15:17]} {[%emt
00:00:05]} g6 {[%clk 00:13:39]} {[%emt 00:00:37]} 7. O-O {[%clk 00:15:14]}
{[%emt 00:00:08]} Bg7 {[%clk 00:13:42]} {[%emt 00:00:03]} 8. d3 {[%clk
00:15:03]} {[%emt 00:00:15]} O-O {[%clk 00:13:43]} {[%emt 00:00:04]} 9. h3
{[%clk 00:15:06]} {[%emt 00:00:02]} e5 {[%clk 00:13:29]} {[%emt 00:00:20]} 10.
Rb1 {[%clk 00:14:50]} {[%emt 00:00:20]} Ne8 {[%clk 00:12:52]} {[%emt 00:00:43]}
11. Nd5 {[%clk 00:13:55]} {[%emt 00:01:00]} Nb6 {[%clk 00:12:23]} {[%emt
00:00:34]} 12. Bxe8 {[%clk 00:12:13]} {[%emt 00:01:47]} Rxe8 {[%clk 00:12:19]}
{[%emt 00:00:09]} 13. Bg5 {[%clk 00:11:53]} {[%emt 00:00:25]} f6 {[%clk
00:12:15]} {[%emt 00:00:10]} 14. Nxb6 {[%clk 00:11:53]} {[%emt 00:00:04]} Qxb6
{[%clk 00:12:17]} {[%emt 00:00:04]} 15. Be3 {[%clk 00:11:56]} f5 {[%clk
00:11:32]} {[%emt 00:00:50]} 16. b4 {[%clk 00:11:49]} {[%emt 00:00:11]} Qc7
{[%clk 00:11:28]} {[%emt 00:00:10]} 17. exf5 {[%clk 00:10:08]} {[%emt
00:01:45]} gxf5 {[%clk 00:11:26]} {[%emt 00:00:07]} 18. Qb3 {[%clk 00:08:45]}
{[%emt 00:01:29]} Qf7 {[%clk 00:08:18]} {[%emt 00:03:13]} 19. bxc5 {[%clk
00:08:16]} {[%emt 00:00:34]} f4 {[%clk 00:08:20]} {[%emt 00:00:02]} 20. Bc1
{[%clk 00:06:27]} {[%emt 00:01:55]} dxc5 {[%clk 00:08:23]} {[%emt 00:00:02]} 21.
Re1 {[%clk 00:05:52]} {[%emt 00:00:40]} Qg6 {[%clk 00:08:11]} {[%emt 00:00:17]}
22. Qb6 {[%clk 00:05:20]} {[%emt 00:00:37]} Qh5 {[%clk 00:07:49]} {[%emt
00:00:27]} 23. Qxc5 {[%clk 00:04:56]} {[%emt 00:00:29]} Bxh3 {[%clk 00:07:44]}
{[%emt 00:00:09]} 24. Bxf4 {[%clk 00:04:38]} {[%emt 00:00:24]} Qg4 {[%clk
00:07:29]} {[%emt 00:00:20]} 25. Bg3 {[%clk 00:04:35]} {[%emt 00:00:07]} Re6
{[%clk 00:06:01]} {[%emt 00:01:34]} 26. Nxe5 {[%clk 00:04:05]} {[%emt
00:00:35]} Bxe5 {[%clk 00:05:42]} {[%emt 00:00:24]} 27. Rxe5 {[%clk 00:04:08]}
{[%emt 00:00:02]} 1-0

[Event "Open NK Rapid 2025"]
[Site "Helmond, Netherlands"]
[Date "2025.05.03"]
[Round "4.13"]
[White "Vogel, Jaap"]
[Black "Sydykov, Bayastan"]
[Result "0-1"]
[TimeControl "15+5"]
[WhiteFideId "1000764"]
[BlackFideId "13829610"]
[WhiteElo "2006"]
[BlackElo "2297"]

1. d4 {[%clk 00:15:09]} Nf6 {[%clk 00:15:09]} {[%emt 00:00:01]} 2. Nf3 {[%clk
00:15:13]} {[%emt 00:00:01]} d5 {[%clk 00:15:13]} {[%emt 00:00:01]} 3. g3
{[%clk 00:15:17]} {[%emt 00:00:01]} c5 {[%clk 00:15:17]} {[%emt 00:00:02]} 4.
Bg2 {[%clk 00:15:21]} cxd4 {[%clk 00:15:20]} {[%emt 00:00:02]} 5. Nxd4 {[%clk
00:15:21]} {[%emt 00:00:04]} Nc6 {[%clk 00:15:05]} {[%emt 00:00:20]} 6. O-O
{[%clk 00:15:20]} {[%emt 00:00:06]} h6 {[%clk 00:14:52]} {[%emt 00:00:18]} 7.
c4 {[%clk 00:15:21]} {[%emt 00:00:04]} e5 {[%clk 00:14:36]} {[%emt 00:00:21]} 8.
Nxc6 {[%clk 00:15:23]} {[%emt 00:00:03]} bxc6 {[%clk 00:14:39]} {[%emt
00:00:02]} 9. Nc3 {[%clk 00:15:20]} {[%emt 00:00:08]} Be6 {[%clk 00:14:02]}
{[%emt 00:00:42]} 10. Qa4 {[%clk 00:15:22]} {[%emt 00:00:04]} Qd7 {[%clk
00:13:34]} {[%emt 00:00:33]} 11. cxd5 {[%clk 00:15:03]} {[%emt 00:00:24]} cxd5
{[%clk 00:13:21]} {[%emt 00:00:18]} 12. Qxd7+ {[%clk 00:15:04]} {[%emt
00:00:03]} Kxd7 {[%clk 00:13:24]} {[%emt 00:00:01]} 13. Rd1 {[%clk 00:14:58]}
{[%emt 00:00:12]} Kc6 {[%clk 00:10:45]} {[%emt 00:02:44]} 14. Be3 {[%clk
00:14:49]} {[%emt 00:00:14]} Bb4 {[%clk 00:09:21]} {[%emt 00:01:28]} 15. Rac1
{[%clk 00:13:24]} {[%emt 00:01:31]} Bxc3 {[%clk 00:07:58]} {[%emt 00:01:27]} 16.
Rxc3+ {[%clk 00:09:24]} {[%emt 00:04:07]} Kd7 {[%clk 00:04:35]} {[%emt
00:03:28]} 17. Rdc1 {[%clk 00:07:01]} {[%emt 00:02:27]} Rhb8 {[%clk 00:03:13]}
{[%emt 00:01:27]} 18. b3 {[%clk 00:05:48]} {[%emt 00:01:19]} a5 {[%clk
00:01:53]} {[%emt 00:01:24]} 19. f4 {[%clk 00:04:09]} {[%emt 00:01:44]} e4
{[%clk 00:00:54]} {[%emt 00:01:05]} 20. Bd4 {[%clk 00:04:05]} {[%emt 00:00:09]}
Ne8 {[%clk 00:00:57]} {[%emt 00:00:01]} 21. Rd1 {[%clk 00:03:35]} {[%emt
00:00:35]} f5 {[%clk 00:00:57]} {[%emt 00:00:06]} 22. Be5 {[%clk 00:03:37]}
{[%emt 00:00:03]} Rb7 {[%clk 00:00:29]} {[%emt 00:00:33]} 23. e3 {[%clk
00:02:45]} {[%emt 00:00:56]} a4 {[%clk 00:00:32]} {[%emt 00:00:02]} 24. Bf1
{[%clk 00:02:38]} {[%emt 00:00:12]} Ke7 {[%clk 00:00:31]} {[%emt 00:00:06]} 25.
Rdc1 {[%clk 00:01:38]} {[%emt 00:01:05]} g6 {[%clk 00:00:31]} {[%emt 00:00:05]}
26. Be2 {[%clk 00:01:07]} {[%emt 00:00:36]} axb3 {[%clk 00:00:34]} {[%emt
00:00:03]} 27. Rxb3 {[%clk 00:01:08]} {[%emt 00:00:04]} Rba7 {[%clk 00:00:34]}
{[%emt 00:00:05]} 28. Rb6 {[%clk 00:00:58]} {[%emt 00:00:15]} Rxa2 {[%clk
00:00:33]} {[%emt 00:00:06]} 29. Kf1 {[%clk 00:00:55]} {[%emt 00:00:07]} R2a7
{[%clk 00:00:26]} {[%emt 00:00:13]} 30. Rcc6 {[%clk 00:00:57]} {[%emt
00:00:02]} Bf7 {[%clk 00:00:29]} {[%emt 00:00:02]} 31. Kf2 {[%clk 00:00:35]}
{[%emt 00:00:27]} Ra2 {[%clk 00:00:18]} {[%emt 00:00:16]} 32. Bb2 {[%clk
00:00:22]} {[%emt 00:00:18]} R8a7 {[%clk 00:00:20]} {[%emt 00:00:04]} 33. Bd1
{[%clk 00:00:20]} {[%emt 00:00:06]} Rc7 {[%clk 00:00:15]} {[%emt 00:00:11]} 34.
Rxc7+ {[%clk 00:00:24]} {[%emt 00:00:01]} Nxc7 {[%clk 00:00:19]} {[%emt
00:00:01]} 35. Rb7 {[%clk 00:00:26]} {[%emt 00:00:03]} Kd6 {[%clk 00:00:20]}
{[%emt 00:00:03]} 36. Be2 {[%clk 00:00:29]} {[%emt 00:00:02]} Kc6 {[%clk
00:00:24]} {[%emt 00:00:02]} 37. Rb8 {[%clk 00:00:32]} {[%emt 00:00:02]} Na6
{[%clk 00:00:14]} {[%emt 00:00:17]} 38. Bd4 {[%clk 00:00:31]} {[%emt 00:00:04]}
Nxb8 {[%clk 00:00:17]} {[%emt 00:00:03]} 0-1